bitfinex/quotes_SOLUSD_20250920
["timestamp","ask_amount","ask_price","bid_price","bid_amount"]
[1758390698661,4.17693496,239.41,239.37,2.28065982]
[1758390698845,4.84693496,239.41,239.37,2.28065982]
[1758390699370,4.17693496,239.41,239.37,2.28065982]
[1758390699671,4.84693496,239.41,239.36,2.28065982]
[1758390699881,4.84693496,239.41,239.36,2.94065982]
[1758390701742,14.61805119,239.43,239.36,2.94065982]
[1758390702045,0.67,239.4,239.36,2.94065982]
[1758390703061,4.17693496,239.41,239.36,2.94065982]
[1758390703365,4.84693496,239.41,239.36,2.94065982]
[1758390704744,4.84693496,239.41,239.36,2.28065982]
[1758390704944,4.84693496,239.41,239.37,0.66]
[1758390705145,4.84693496,239.41,239.36,2.94065982]
[1758390706072,4.84693496,239.41,239.37,0.66]
[1758390706241,14.61927237,239.41,239.35,13.59559401]
[1758390706441,15.28927237,239.41,239.36,2.94065982]
[1758390706768,14.61927237,239.41,239.37,0.66]
[1758390706955,15.28927237,239.41,239.37,0.66]
[1758390707359,15.28927237,239.41,239.36,2.28065982]
[1758390707666,15.28927237,239.41,239.36,2.94065982]
[1758390708080,11.11233741,239.41,239.36,2.94065982]
[1758390708247,10.44233741,239.41,239.36,2.94065982]
[1758390708570,11.11233741,239.41,239.36,2.94065982]
[1758390709576,0.67,239.4,239.35,2.28065982]
[1758390709746,0.67,239.39,239.32,2.94065982]
[1758390709947,5.05410736,239.4,239.32,2.28065982]
[1758390709948,14.62171533,239.37,239.32,2.28065982]
[1758390710172,15.29171533,239.37,239.32,2.94065982]
[1758390712660,14.62171533,239.37,239.33,0.66]
[1758390712859,14.62171533,239.37,239.34,0.66]
[1758390713267,14.62171533,239.37,239.33,2.28065982]
[1758390713570,14.62171533,239.37,239.33,2.94065982]
[1758390713753,14.62171533,239.37,239.34,0.66]
[1758390714773,4.17748075,239.38,239.36,2.28065982]
[1758390715070,4.17748075,239.38,239.35,2.94065982]
[1758390715450,4.17728392,239.39,239.35,2.94065982]
[1758390715748,4.17728392,239.39,239.36,0.66]
[1758390718476,4.17728392,239.39,239.35,2.28065982]
[1758390718845,4.17728392,239.39,239.36,0.68]
[1758390719653,4.17728392,239.39,239.35,2.28065982]
[1758390719985,7.61329952,239.39,239.35,2.96065982]
[1758390720281,2.78151189,239.38,239.35,2.28065982]
[1758390720476,2.78151189,239.38,239.36,0.68]
[1758390721164,4.17728392,239.39,239.35,2.28065982]
[1758390721359,2.78151189,239.38,239.35,2.28065982]
[1758390721559,4.17763295,239.37,239.35,2.96065982]
[1758390721875,4.17763295,239.37,239.35,0.68]
[1758390722274,6.95914484,239.37,239.35,0.68]
[1758390722479,4.17763295,239.37,239.35,0.68]
[1758390722958,6.96344588,239.37,239.35,0.68]
[1758390723158,4.17745843,239.38,239.35,0.68]
[1758390723360,5.88276381,239.37,239.35,0.68]
[1758390723562,2.78587429,239.36,239.35,2.28065982]
[1758390723782,6.45916205,239.42,239.35,2.28065982]
[1758390723783,2.78587429,239.37,239.35,2.28065982]
[1758390723972,2.78732222,239.41,239.36,2.28065982]
[1758390724268,5.88432829,239.4,239.37,0.69]
[1758390724464,5.88432829,239.39,239.37,0.69]
[1758390724683,4.17689883,239.42,239.37,0.69]
[1758390724861,5.88597753,239.41,239.37,0.69]
[1758390725062,5.88597753,239.4,239.37,0.69]
[1758390725257,2.78810136,239.39,239.37,4.86752552]
[1758390725565,2.78810136,239.42,239.38,2.97065982]
[1758390725768,5.88680313,239.41,239.39,0.69]
[1758390726086,2.78810136,239.4,239.39,14.28559401]
[1758390726264,2.78810136,239.44,239.39,14.28559401]
[1758390726577,5.88668383,239.43,239.4,0.69]
[1758390726780,5.88668383,239.42,239.4,0.69]
[1758390726979,5.88668383,239.41,239.39,17.77284892]
[1758390727163,4.17640423,239.45,239.4,13.59559401]
[1758390727363,5.88625637,239.44,239.4,13.59559401]
[1758390727686,5.88625637,239.43,239.41,0.69]
[1758390727994,5.88625637,239.42,239.4,13.59559401]
[1758390728199,2.78823214,239.41,239.4,13.59559401]
[1758390728368,2.78823214,239.44,239.4,13.59559401]
[1758390728695,5.88572834,239.43,239.41,0.69]
[1758390728915,5.88572834,239.42,239.41,0.69]
[1758390729192,5.88572834,239.42,239.41,2.15053961]
[1758390730574,6.60572834,239.42,239.37,1.46053961]
[1758390730782,6.60572834,239.41,239.36,33.35053961]
[1758390730998,6.60572834,239.4,239.36,33.35053961]
[1758390731186,2.78823214,239.39,239.36,33.35053961]
[1758390731668,0.72,239.4,239.36,33.35053961]
[1758390731866,2.7861959,239.39,239.36,33.35053961]
[1758390732596,6.96357544,239.39,239.36,33.35053961]
[1758390732808,4.17737954,239.39,239.36,33.35053961]
[1758390733006,6.96354207,239.39,239.36,33.35053961]
[1758390733665,7.68354207,239.39,239.33,46.20559401]
[1758390733990,2.78610654,239.38,239.36,13.59559401]
[1758390734499,2.78610654,239.38,239.35,0.69]
[1758390734687,2.78610654,239.38,239.34,33.42053961]
[1758390734867,2.78610654,239.38,239.34,34.11053961]
[1758390736115,4.17763295,239.37,239.35,0.69]
[1758390736967,4.17741669,239.39,239.36,0.69]
[1758390737269,2.78586785,239.4,239.37,1.46053961]
[1758390737468,10.44175495,239.43,239.38,2.15053961]
[1758390737687,10.05826077,239.42,239.38,2.15053961]
[1758390737888,5.88150027,239.41,239.38,2.15053961]
[1758390738081,5.88150027,239.4,239.38,1.46053961]
[1758390738280,4.17708221,239.41,239.38,1.46053961]
[1758390738493,5.88141859,239.4,239.38,1.46053961]
[1758390738693,4.17708221,239.41,239.38,1.46053961]
[1758390738988,5.88141839,239.4,239.38,1.46053961]
[1758390739190,4.17708221,239.41,239.38,1.46053961]
[1758390739364,5.88144779,239.4,239.38,1.46053961]
[1758390739569,4.17708221,239.41,239.38,1.46053961]
[1758390739800,5.88144839,239.4,239.38,2.15053961]
[1758390739985,4.17708221,239.41,239.38,2.15053961]
[1758390740163,5.8814485,239.4,239.38,2.15053961]
[1758390740368,0.72,239.42,239.38,2.15053961]
[1758390740569,10.05828894,239.41,239.38,2.15053961]
[1758390740772,2.78588243,239.4,239.38,2.15053961]
[1758390740972,4.17693496,239.41,239.38,2.15053961]
[1758390741198,2.78588151,239.4,239.38,2.15053961]
[1758390741401,4.17693496,239.41,239.38,2.15053961]
[1758390741574,2.78583985,239.4,239.38,2.15053961]
[1758390741773,4.17677516,239.42,239.38,2.15053961]
[1758390741974,5.88126915,239.41,239.38,2.15053961]
[1758390742293,2.78584121,239.4,239.39,0.69]
[1758390742476,4.17641162,239.44,239.39,0.69]
[1758390742670,5.88125787,239.43,239.39,0.69]
[1758390742870,5.88125787,239.42,239.39,0.69]
[1758390743067,5.88125787,239.41,239.39,0.69]
[1758390743385,2.78584121,239.4,239.38,4.17744337]
[1758390743590,6.96242899,239.43,239.39,1.46053961]
[1758390743894,6.96242899,239.43,239.41,1.46053961]
[1758390743895,5.88111536,239.42,239.41,1.46053961]
[1758390744572,5.88111536,239.42,239.39,0.69]
[1758390744772,5.88111536,239.41,239.39,2.15053961]
[1758390744974,2.78584121,239.4,239.39,2.15053961]
[1758390745181,2.78584121,239.42,239.39,2.15053961]
[1758390745389,5.88099888,239.41,239.39,2.15053961]
[1758390745588,2.78584121,239.4,239.39,2.15053961]
[1758390745801,2.78584121,239.42,239.39,2.15053961]
[1758390745991,5.88099841,239.41,239.39,2.15053961]
[1758390746182,2.78584121,239.4,239.39,2.15053961]
[1758390746388,2.78584121,239.42,239.39,2.15053961]
[1758390746704,2.78584121,239.41,239.4,0.71]
[1758390746886,2.78584121,239.42,239.4,0.71]
[1758390747088,2.78584121,239.41,239.4,0.71]
[1758390747396,2.78584121,239.42,239.4,0.71]
[1758390747701,2.78584121,239.41,239.4,0.71]
[1758390747899,2.78584121,239.42,239.4,0.71]
[1758390748102,2.78584121,239.41,239.4,0.71]
[1758390748289,2.78584121,239.42,239.4,0.71]
[1758390748497,2.78584121,239.41,239.4,0.71]
[1758390748804,2.78584121,239.42,239.4,0.71]
[1758390749007,2.78584121,239.41,239.4,0.71]
[1758390749181,2.78584121,239.42,239.4,0.71]
[1758390749599,2.78584121,239.42,239.4,2.17053961]
[1758390749803,2.78584121,239.42,239.4,1.46053961]
[1758390749999,2.78584121,239.44,239.41,0.71]
[1758390750179,2.78584121,239.43,239.41,0.71]
[1758390750809,2.78584121,239.42,239.41,0.71]
[1758390750983,2.78584121,239.43,239.41,0.71]
[1758390752299,2.78584121,239.43,239.4,1.46053961]
[1758390752498,2.78584121,239.43,239.4,2.17053961]
[1758390752886,2.78584121,239.44,239.4,2.17053961]
[1758390753093,2.78584121,239.43,239.4,2.17053961]
[1758390754212,2.78584121,239.43,239.42,1.46053961]
[1758390754393,0.7,239.48,239.42,2.17053961]
[1758390754394,2.78584121,239.44,239.42,2.17053961]
[1758390754709,2.78584121,239.47,239.42,1.46053961]
[1758390755023,5.879949,239.46,239.44,1.46053961]
[1758390755198,2.78584121,239.47,239.44,1.46053961]
[1758390755512,2.78584121,239.46,239.45,0.71]
[1758390755720,2.78584121,239.47,239.44,1.46053961]
[1758390755901,2.78584121,239.46,239.44,2.17053961]
[1758390756098,2.78584121,239.47,239.44,2.17053961]
[1758390756297,2.78584121,239.47,239.46,1.46053961]
[1758390756496,5.87973884,239.47,239.46,1.46053961]
[1758390757322,10.05562726,239.47,239.44,1.46053961]
[1758390757497,2.78584121,239.46,239.44,2.17053961]
[1758390757900,4.17588842,239.47,239.44,2.17053961]
[1758390758125,6.96172963,239.47,239.44,2.17053961]
[1758390758427,4.17556771,239.49,239.46,1.46053961]
[1758390758628,5.87765845,239.48,239.46,1.46053961]
[1758390758811,2.78414852,239.47,239.46,1.46053961]
[1758390759129,2.78414852,239.48,239.46,1.46053961]
[1758390759331,2.78414852,239.47,239.46,1.46053961]
[1758390759530,2.78414852,239.47,239.45,0.71]
[1758390759709,2.78414852,239.47,239.46,1.46053961]
[1758390761226,4.17578794,239.48,239.46,1.46053961]
[1758390761520,6.95993646,239.48,239.46,1.46053961]
[1758390761701,7.66004823,239.47,239.43,31.94]
[1758390761902,7.66004823,239.47,239.45,1.46053961]
[1758390761903,4.87589971,239.47,239.45,1.46053961]
[1758390762518,4.17589971,239.47,239.45,1.46053961]
[1758390764619,4.17589971,239.47,239.45,0.71]
[1758390764820,2.78343721,239.48,239.46,2.17053961]
[1758390765013,0.7,239.5,239.46,1.46053961]
[1758390765213,0.7,239.49,239.46,1.46053961]
[1758390766134,4.17571404,239.48,239.46,1.46053961]
[1758390768135,6.95894089,239.5,239.47,0.71]
[1758390768318,7.65894089,239.5,239.46,2.17053961]
[1758390768524,7.65894089,239.5,239.46,1.46053961]
[1758390769712,0.7,239.49,239.46,1.46053961]
[1758390770612,17.39735425,239.5,239.46,1.46053961]
[1758390770832,6.57307479,239.49,239.46,1.46053961]
[1758390771138,4.17571404,239.48,239.46,1.46053961]
[1758390772728,4.87571404,239.48,239.46,1.46053961]
[1758390772930,0.7,239.47,239.44,1.46053961]
[1758390773118,4.8760628,239.46,239.44,1.46053961]
[1758390773314,4.1760628,239.46,239.44,1.46053961]
[1758390774036,15.31621981,239.46,239.42,1.46053961]
[1758390774241,2.78343721,239.45,239.42,2.17053961]
[1758390774409,14.61621981,239.46,239.43,0.71]
[1758390775141,10.44015701,239.46,239.43,0.71]
[1758390775639,10.44015701,239.46,239.42,2.17053961]
[1758390775811,10.44015701,239.46,239.43,0.71]
[1758390776442,4.17588842,239.47,239.43,0.71]
[1758390776645,4.87588842,239.47,239.43,0.71]
[1758390779342,7.65584377,239.47,239.43,0.71]
[1758390779513,4.17623721,239.45,239.43,0.71]
[1758390780260,4.17623721,239.45,239.4,13.59559401]
[1758390780429,4.17623721,239.45,239.43,1.46053961]
[1758390780625,4.17583134,239.48,239.44,0.71]
[1758390780934,7.6565743,239.48,239.44,0.71]
[1758390782624,2.78074296,239.48,239.47,1.46053961]
[1758390782823,10.04692954,239.48,239.47,1.46053961]
[1758390783429,10.04780966,239.48,239.47,1.46053961]
[1758390784831,10.04780966,239.48,239.45,2.14053961]
[1758390785028,6.9575115,239.47,239.46,0.68]
[1758390785320,6.9575115,239.47,239.45,1.46053961]
[1758390785648,4.17588842,239.47,239.45,1.46053961]
[1758390785826,4.17588842,239.47,239.45,2.9614669]
[1758390786552,4.17571404,239.48,239.45,2.9614669]
[1758390786740,6.95788569,239.48,239.45,2.9614669]
[1758390787220,4.17571404,239.48,239.45,2.9614669]
[1758390787422,6.95814018,239.48,239.45,2.2814669]
[1758390787731,4.17571404,239.48,239.45,2.2814669]
[1758390788119,6.95807212,239.48,239.45,2.2814669]
[1758390788419,2.78235808,239.47,239.45,2.2814669]
[1758390789139,4.1760628,239.46,239.45,2.2814669]
[1758390790152,4.17588842,239.47,239.45,2.2814669]
[1758390790445,4.17588842,239.47,239.45,2.9614669]
[1758390790652,6.95868872,239.47,239.45,2.9614669]
[1758390790850,2.7828003,239.46,239.45,2.9614669]
[1758390791227,4.1760628,239.46,239.45,2.9614669]
[1758390791630,6.9588631,239.46,239.42,13.59559401]
[1758390791868,4.1760628,239.46,239.45,2.2814669]
[1758390792360,6.95940007,239.46,239.45,2.2814669]
[1758390792728,4.1760628,239.46,239.45,2.2814669]
[1758390792948,3.4779476,239.52,239.45,2.2814669]
[1758390792949,4.17673762,239.54,239.46,13.59559401]
[1758390793138,10.05349652,239.53,239.5,2.2814669]
[1758390793342,2.78436075,239.52,239.5,2.9614669]
[1758390793549,6.95936842,239.53,239.5,2.9614669]
[1758390793858,2.78436075,239.52,239.5,2.9614669]
[1758390794049,2.78436075,239.52,239.51,0.68]
[1758390794227,2.78436075,239.54,239.51,0.68]
[1758390794425,5.87700138,239.53,239.52,2.9614669]
[1758390794633,3.09264063,239.53,239.52,2.9614669]
[1758390794822,5.87700138,239.53,239.52,2.9614669]
[1758390795034,3.09264063,239.53,239.52,2.9614669]
[1758390795237,5.87700138,239.53,239.52,2.2814669]
[1758390795436,2.78436075,239.54,239.52,2.9614669]
[1758390795641,2.78436075,239.56,239.53,2.9614669]
[1758390795838,2.78436075,239.55,239.54,0.68]
[1758390796132,6.95833894,239.58,239.51,4.17519101]
[1758390796330,4.27380603,239.59,239.55,0.68]
[1758390796526,0.1,239.59,239.55,0.68]
[1758390796952,0.1,239.59,239.57,2.2814669]
[1758390797151,0.1,239.59,239.57,2.9614669]
[1758390798039,0.1,239.59,239.58,0.68]
[1758390798840,0.1,239.59,239.57,2.2814669]
[1758390799042,0.1,239.59,239.58,0.68]
[1758390800452,0.1,239.59,239.58,2.9614669]
[1758390810564,0.1,239.59,239.58,0.68]
[1758390810773,0.1,239.59,239.58,2.9614669]
[1758390816277,0.1,239.59,239.58,0.68]
[1758390822879,0.1,239.59,239.58,2.9614669]
[1758390826171,0.1,239.59,239.58,16.55706091]
[1758390826570,0.1,239.59,239.58,20.73103202]
[1758390827083,0.1,239.59,239.58,16.55706091]
[1758390833273,0.1,239.59,239.58,13.59559401]
[1758390833479,0.1,239.59,239.58,45.47559401]
[1758390833900,0.1,239.59,239.58,46.17559401]
[1758390845908,0.1,239.59,239.58,47.63400459]
[1758390854097,0.1,239.59,239.58,13.59559401]
[1758390854302,7.75482484,239.59,239.58,31.88]
[1758390856214,2.89102794,239.59,239.58,31.88]
[1758390856394,2.89102794,239.59,239.58,32.55]
[1758390857223,2.89102794,239.59,239.58,31.88]
[1758390857722,7.06482484,239.59,239.58,31.88]
[1758390861218,7.75482484,239.59,239.58,31.88]
[1758390861518,18.18811315,239.59,239.58,31.88]
[1758390861710,17.49811315,239.59,239.58,31.88]
[1758390870804,13.32431625,239.59,239.58,31.88]
[1758390871026,2.89102794,239.59,239.58,32.56]
[1758390871322,2.89102794,239.59,239.58,34.01841058]
[1758390871910,2.89102794,239.59,239.58,32.56]
[1758390872117,2.89102794,239.59,239.58,34.01841058]
[1758390872916,0.1,239.59,239.58,34.01841058]
[1758390873119,0.1,239.59,239.58,32.56]
[1758390873317,2.89102794,239.59,239.58,34.01841058]
[1758390873529,0.1,239.59,239.58,34.01841058]
[1758390878262,0.76,239.59,239.56,4.17328915]
[1758390878546,3.45102794,239.58,239.56,31.88]
[1758390878923,2.79102794,239.57,239.53,14.27559401]
[1758390879254,0.66,239.58,239.54,32.56]
[1758390879255,12.55236612,239.58,239.54,32.56]
[1758390879421,2.78911254,239.57,239.54,32.56]
[1758390879625,4.2737969,239.57,239.54,32.56]
[1758390880140,7.06244068,239.57,239.54,32.56]
[1758390881638,7.06244068,239.57,239.55,0.68]
[1758390881820,7.06244068,239.57,239.56,31.88]
[1758390883022,4.2737969,239.57,239.56,31.88]
[1758390884146,4.2737969,239.57,239.56,32.56]
[1758390884522,4.2737969,239.57,239.56,31.88]
[1758390886949,8.44794224,239.57,239.56,31.88]
[1758390890352,8.44794224,239.57,239.55,1.45841058]
[1758390890654,8.44794224,239.57,239.56,31.88]
[1758390892955,8.44794224,239.57,239.56,32.56]
[1758390894653,4.2737969,239.57,239.56,32.56]
[1758390897566,4.2737969,239.57,239.56,46.15559401]
[1758390897751,0.1,239.59,239.56,36.73431199]
[1758390898065,0.1,239.59,239.58,15.05400459]
[1758390898363,0.1,239.59,239.58,46.93400459]
[1758390898567,0.1,239.59,239.58,51.20780149]
[1758390898764,0.1,239.59,239.58,51.91780149]
[1758390904750,0.1,239.59,239.58,56.0917726]
[1758390907780,0.1,239.59,239.58,56.91192649]
[1758390911375,0.1,239.59,239.58,25.03192649]
[1758390911585,0.1,239.59,239.58,56.89192649]
[1758390915681,0.1,239.59,239.58,25.03192649]
[1758390915881,0.1,239.59,239.58,52.71795538]
[1758390919358,0.1,239.59,239.58,20.86795538]
[1758390919666,0.1,239.59,239.58,52.72795538]
[1758390920375,0.1,239.59,239.58,56.90192649]
[1758390921495,0.1,239.59,239.58,52.72795538]
[1758390921863,0.1,239.59,239.58,56.90192649]
[1758390944489,0.1,239.59,239.58,56.18192649]
[1758390945223,0.1,239.59,239.58,56.88192649]
[1758390962923,0.1,239.59,239.58,56.86192649]
[1758390967932,0.1,239.59,239.58,56.04107078]
[1758390968343,0.1,239.59,239.58,24.20107078]
[1758390968517,0.1,239.59,239.58,56.04107078]
[1758390968712,0.1,239.59,239.58,55.34107078]
[1758390969222,0.1,239.59,239.58,56.03107078]
[1758390976454,0.2,239.65,239.62,44.79559401]
[1758390976648,0.2,239.65,239.64,1.45770876]
[1758390977137,0.89,239.65,239.64,15.26828935]
[1758390977342,0.2,239.65,239.64,48.56599811]
[1758390978335,0.2,239.65,239.64,52.73892416]
[1758390981044,0.2,239.65,239.64,53.42892416]
[1758390987439,0.2,239.65,239.64,53.84621676]
[1758390988648,0.2,239.65,239.64,22.00621676]
[1758390988851,0.2,239.65,239.64,53.82621676]
[1758390991033,0.2,239.65,239.64,19.4412154]
[1758390991261,0.86,239.65,239.64,48.54599811]
[1758390992247,0.86,239.65,239.64,16.72599811]
[1758390992553,0.86,239.65,239.64,48.54599811]
[1758390994454,0.86,239.65,239.64,15.05330277]
[1758390994652,0.86,239.65,239.64,46.87330277]
[1758390995154,0.2,239.65,239.64,51.73622882]
[1758390995453,0.2,239.65,239.64,53.40871434]
[1758391010062,0.2,239.65,239.64,53.82600694]
[1758391011062,0.2,239.65,239.64,52.71871434]
[1758391012165,0.2,239.65,239.64,53.40871434]
[1758391018369,0.2,239.65,239.64,20.89871434]
[1758391018669,0.2,239.65,239.64,52.71871434]
[1758391020266,0.2,239.65,239.64,53.41871434]
[1758391021972,0.2,239.65,239.64,52.71871434]
[1758391023551,0.2,239.65,239.64,53.37871434]
[1758391027479,0.2,239.65,239.64,21.55871434]
[1758391027676,0.2,239.65,239.64,53.37871434]
[1758391029781,0.2,239.65,239.64,54.19748129]
[1758391032455,0.2,239.65,239.64,67.15477389]
[1758391032792,0.2,239.66,239.65,13.59559401]
[1758391033071,0.2,239.66,239.65,22.98129735]
[1758391033648,0.2,239.67,239.65,22.98129735]
[1758391033855,0.2,239.67,239.66,50.38580321]
[1758391034072,0.2,239.67,239.66,51.04580321]
[1758391034660,0.2,239.67,239.66,56.89058687]
[1758391035472,0.3,239.69,239.66,56.89058687]
[1758391035473,0.3,239.69,239.68,44.79559401]
[1758391035793,0.3,239.69,239.68,81.16854543]
[1758391035969,0.3,239.69,239.68,81.82854543]
[1758391036162,0.3,239.69,239.68,83.50068138]
[1758391036986,0.3,239.69,239.68,87.67291101]
[1758391037184,0.2,239.7,239.69,13.59559401]
[1758391037476,0.2,239.7,239.69,16.94927527]
[1758391037856,0.2,239.7,239.69,18.62120154]
[1758391038654,0.7,239.76,239.73,13.59559401]
[1758391038858,0.7,239.76,239.73,47.69206972]
[1758391039124,0.7,239.78,239.73,52.52342916]
[1758391039281,0.1,239.79,239.73,52.52342916]
[1758391039960,0.1,239.79,239.73,54.1951458]
[1758391041068,0.8,239.79,239.73,54.1951458]
[1758391042995,0.8,239.79,239.73,57.51792851]
[1758391043591,0.1,239.79,239.73,57.51792851]
[1758391044587,0.8,239.79,239.73,57.51792851]
[1758391044778,0.8,239.79,239.73,57.93506445]
[1758391048991,0.1,239.79,239.73,57.93506445]
[1758391049195,0.69,239.78,239.73,57.93506445]
[1758391049602,0.1,239.79,239.73,57.93506445]
[1758391049899,0.79,239.79,239.73,57.93506445]
[1758391052780,1e-08,239.74,239.73,57.93506445]
[1758391053003,0.1,239.79,239.78,13.59559401]
[1758391053295,0.79,239.79,239.78,47.67206972]
[1758391053705,0.79,239.79,239.78,49.34350694]
[1758391054406,0.79,239.79,239.78,66.20708136]
[1758391055692,0.79,239.79,239.78,28.56515453]
[1758391055978,0.79,239.79,239.77,2.27647571]
[1758391056183,0.1,239.79,239.78,31.8]
[1758391056397,4.27035211,239.79,239.78,31.8]
[1758391056704,4.96035211,239.79,239.78,31.8]
[1758391061488,0.79,239.79,239.78,31.8]
[1758391061791,0.79,239.79,239.78,47.67206972]
[1758391064999,4.96031569,239.79,239.78,45.39559401]
[1758391071315,4.27031569,239.79,239.78,45.39559401]
[1758391075322,4.27031569,239.79,239.78,47.67206972]
[1758391075525,4.27031569,239.79,239.78,15.87206972]
[1758391075723,4.96031569,239.79,239.78,45.39559401]
[1758391076421,4.27031569,239.79,239.78,45.39559401]
[1758391080225,15.39610492,239.79,239.72,0.72]
[1758391080521,15.39610492,239.79,239.73,45.39559401]
[1758391080725,0.7,239.78,239.73,45.39559401]
[1758391080926,0.7,239.77,239.73,45.39559401]
[1758391081115,0.7,239.77,239.73,48.39206972]
[1758391082326,4.1708375,239.76,239.73,48.39206972]
[1758391085032,4.1708375,239.76,239.73,46.11559401]
[1758391087004,4.1708375,239.76,239.74,31.8]
[1758391088731,4.17066355,239.77,239.74,31.8]
[1758391088916,4.17066355,239.77,239.74,32.5]
[1758391093312,0.71,239.76,239.7,0.7]
[1758391093514,1.45669193,239.75,239.68,15.75228594]
[1758391093729,0.71,239.74,239.7,13.59559401]
[1758391093932,2.16669193,239.73,239.71,31.8]
[1758391094511,4.17153345,239.72,239.71,31.8]
[1758391096531,16.05705901,239.72,239.69,0.7]
[1758391096720,1.45669193,239.7,239.67,14.29559401]
[1758391097043,1.45669193,239.68,239.67,31.8]
[1758391097634,5.62892156,239.68,239.67,31.8]
[1758391098446,6.33892156,239.68,239.61,2.1803769]
[1758391098747,6.33892156,239.68,239.62,31.82]
[1758391098748,1.45669193,239.64,239.62,31.82]
[1758391098959,1.45669193,239.63,239.59,14.29559401]
[1758391099125,1.45669193,239.64,239.6,32.52]
[1758391099330,1.45669193,239.64,239.61,0.7]
[1758391099721,4.17310019,239.63,239.61,0.7]
[1758391102145,4.17310019,239.63,239.61,31.82]
[1758391102324,1.45669193,239.62,239.61,31.82]
[1758391102646,5.62979212,239.63,239.61,31.82]
[1758391102834,6.33979212,239.63,239.6,31.82]
[1758391103038,1.45669193,239.62,239.6,31.82]
[1758391103352,1.45669193,239.63,239.6,32.52]
[1758391104760,5.62986393,239.63,239.6,32.52]
[1758391107061,5.62986393,239.63,239.6,0.7]
[1758391107236,5.62986393,239.63,239.6,32.52]
[1758391108432,6.31986393,239.63,239.6,31.82]
[1758391108748,5.62986393,239.63,239.6,31.82]
[1758391108964,5.62986393,239.63,239.6,32.51]
[1758391110559,1.45669193,239.62,239.6,31.82]
[1758391110950,4.17344852,239.61,239.6,32.51]
[1758391114473,1.45669193,239.62,239.6,32.51]
[1758391114474,5.62996922,239.62,239.6,32.51]
[1758391114962,5.62996922,239.62,239.6,31.82]
[1758391115267,5.62996922,239.62,239.6,32.51]
[1758391118873,5.62996922,239.62,239.6,31.82]
[1758391119172,1.45669193,239.62,239.61,0.69]
[1758391119355,1.45669193,239.62,239.6,31.82]
[1758391119668,1.45669193,239.62,239.6,32.51]
[1758391119875,1.45669193,239.62,239.61,0.69]
[1758391120252,1.45669193,239.63,239.61,0.69]
[1758391121357,4.17294523,239.64,239.61,0.69]
[1758391124571,4.17294523,239.64,239.6,31.82]
[1758391124777,4.17294523,239.64,239.61,0.69]
[1758391126863,14.60427237,239.66,239.61,0.69]
[1758391127187,0.69,239.64,239.61,0.69]
[1758391127568,0.69,239.64,239.6,31.82]
[1758391127767,0.69,239.64,239.6,32.51]
[1758391128267,4.17310019,239.63,239.6,32.51]
[1758391129879,4.17310019,239.63,239.6,31.82]
[1758391130076,0.69,239.65,239.61,0.69]
[1758391132189,4.17292605,239.64,239.61,0.69]
[1758391132959,4.17292605,239.64,239.6,31.82]
[1758391133164,4.17292605,239.64,239.62,0.69]
[1758391133470,4.17170747,239.71,239.64,13.59559401]
[1758391133674,6.95806307,239.71,239.67,1.45669193]
[1758391133869,6.95806307,239.71,239.68,0.69]
[1758391134565,7.64806307,239.71,239.67,1.45669193]
[1758391134765,7.64806307,239.71,239.67,2.14669193]
[1758391138103,0.67,239.7,239.65,33.27669193]
[1758391138286,2.79305205,239.69,239.65,33.27669193]
[1758391138486,3.46305205,239.69,239.65,33.96669193]
[1758391138784,0.67,239.69,239.65,33.96669193]
[1758391138984,3.46305205,239.69,239.65,33.96669193]
[1758391139180,4.17222963,239.68,239.65,33.96669193]
[1758391139578,6.96528168,239.68,239.65,33.96669193]
[1758391139780,4.17222963,239.68,239.65,33.96669193]
[1758391140195,6.9659734,239.68,239.65,33.96669193]
[1758391141193,6.96631111,239.67,239.65,33.96669193]
[1758391141494,4.17256734,239.67,239.65,33.96669193]
[1758391141997,6.96851587,239.67,239.66,0.69]
[1758391142295,4.17205557,239.69,239.66,0.69]
[1758391142474,2.79594853,239.68,239.66,0.69]
[1758391142668,2.79594853,239.67,239.66,0.69]
[1758391142869,2.79594853,239.68,239.66,0.69]
[1758391143094,2.79594853,239.67,239.66,0.69]